fUST/lending_fUST_20240630
["ID","MTS","AMOUNT","RATE_DAILY","PERIOD"]
[330651552,1719690640017,-500.0,0.0001695,2]
[330651553,1719690640032,-3491.80290276,0.0001695,2]
[330652022,1719690843160,3126.1091191,0.00014999,4]
[330652023,1719690906880,1569.94735745,0.00014999,2]
[330652029,1719691064374,1568.09053813,0.00014999,2]
[330652043,1719691393469,181.6707771,0.00014999,2]
[330652044,1719691408476,558.25039303,0.00014999,2]
[330652045,1719691416095,157.89114382,0.00014999,2]
[330652051,1719691519850,181.40753852,0.00014999,2]
[330652063,1719691728561,-686.43453145,0.00015825,2]
[330652064,1719691728610,-162.89361975,0.00015825,2]
[330652065,1719691728644,-523.5409117,0.00015867,2]
[330652066,1719691728690,-606.72933024,0.00015867,2]
[330652068,1719691753518,-726.02649932,0.00015867,2]
[330652069,1719691753607,-617.73158394,0.00015867,2]
[330652113,1719691837988,-3600.3853155,0.00015819,2]
[330652115,1719691837998,-500.0,0.00016,2]
[330652117,1719691838008,-5285.14289515,0.00016504,2]
[330652118,1719691838017,-620.0,0.00016731,2]
[330652119,1719691838027,-895.91594519,0.00016845,2]
[330652121,1719691838036,-2707.22024458,0.00016847,2]
[330652123,1719691838046,-2000.0,0.00016848,2]
[330652125,1719691838057,-2707.22024454,0.00016848,2]
[330652127,1719691838066,-2707.22024454,0.0001685,2]
[330652129,1719691838077,-2707.22024454,0.00016851,2]
[330652131,1719691838087,-2707.22024454,0.00016852,2]
[330652133,1719691838096,-240.821,0.00016876,2]
[330652135,1719691838106,-153.0,0.000169,2]
[330652137,1719691838115,-411.4378747,0.000169,2]
[330652139,1719691838126,-153.0,0.000169,2]
[330652141,1719691838136,-153.0,0.000169,2]
[330652143,1719691838146,-153.0,0.000169,2]
[330652145,1719691838155,-153.0,0.000169,2]
[330652147,1719691838165,-773.0,0.00016908,2]
[330652149,1719691838175,-500.0,0.00016944,2]
[330652151,1719691838184,-9813.11,0.00016945,2]
[330652153,1719691838195,-573.05,0.00016945,2]
[330652155,1719691838204,-2866.97,0.00016945,2]
[330652157,1719691838214,-500.0,0.00016945,2]
[330652159,1719691838223,-7496.65,0.00016945,2]
[330652161,1719691838232,-797.56,0.00016946,2]
[330652163,1719691838242,-500.0,0.00016946,2]
[330652165,1719691838252,-3472.1,0.00016946,2]
[330652167,1719691838262,-1038.71,0.00016946,2]
[330652169,1719691838271,-4240.54,0.00016946,2]
[330652171,1719691838281,-203.82757905,0.00016946,2]
[330652173,1719691838291,-773.88,0.00016946,2]
[330652175,1719691838300,-894.65,0.00016946,2]
[330652177,1719691838309,-752.43,0.00016946,2]
[330652179,1719691838319,-58563.02,0.00016946,2]
[330652181,1719691838329,-3560.25,0.00016946,2]
[330652183,1719691838343,-4021.83,0.00016946,2]
[330652185,1719691838357,-6811.1,0.00016946,2]
[330652187,1719691838367,-11341.7,0.00016946,2]
[330652189,1719691838378,-4238.18,0.00016946,2]
[330652191,1719691838388,-1077.37,0.00016946,2]
[330652193,1719691838397,-1661.17,0.00016946,2]
[330652195,1719691838408,-669.9,0.00016946,2]
[330652197,1719691838418,-501.66243871,0.00016946,2]
[330652198,1719691838428,-10163.5,0.00016946,2]
[330652200,1719691838438,-500.0,0.00016946,2]
[330652202,1719691838448,-9176.86,0.00016946,2]
[330652204,1719691838458,-58107.30030245,0.00016947,7]
[330652206,1719691838467,-2407.10021603,0.00016947,7]
[330652208,1719691838477,-500.0,0.00016947,2]
[330652209,1719691838486,-641.33,0.00016947,2]
[330652211,1719691838495,-500.0,0.00016947,2]
[330652213,1719691838506,-893.91,0.00016947,2]
[330652215,1719691838515,-500.0,0.00016947,2]
[330652217,1719691838524,-500.0,0.00016947,2]
[330652219,1719691838534,-500.0,0.00016947,2]
[330652221,1719691838543,-500.0,0.00016947,2]
[330652223,1719691838553,-500.0,0.00016947,2]
[330652225,1719691838564,-677.46,0.00016947,2]
[330652227,1719691838575,-519.75471503,0.00016947,2]
[330652229,1719691838585,-500.0,0.00016947,2]
[330652231,1719691838595,-500.0,0.00016947,2]
[330652233,1719691838604,-183.40138099,0.00016947,2]
[330652235,1719691838614,-1216.46,0.00016947,2]
[330652237,1719691838623,-500.0,0.00016947,2]
[330652239,1719691838633,-500.0,0.00016947,2]
[330652241,1719691838642,-873.89,0.00016947,2]
[330652243,1719691838652,-500.0,0.00016947,2]
[330652245,1719691838662,-543.58763257,0.00016947,2]
[330652247,1719691838671,-503.32054217,0.00016947,2]
[330652249,1719691838681,-500.0,0.00016947,2]
[330652251,1719691838691,-653.48,0.00016947,2]
[330652253,1719691838700,-500.0,0.00016947,2]
[330652255,1719691838709,-500.0,0.00016947,2]
[330652257,1719691838718,-500.0,0.00016947,2]
[330652258,1719691838728,-500.0,0.00016947,2]
[330652260,1719691838738,-500.0,0.00016947,2]
[330652262,1719691838747,-1000.0,0.00016947,2]
[330652264,1719691838757,-528.6361372,0.00016947,2]
[330652266,1719691838766,-538.1489988,0.00016947,2]
[330652268,1719691838775,-500.0,0.00016947,2]
[330652270,1719691838785,-500.0,0.00016947,2]
[330652272,1719691838795,-1015.74,0.00016947,2]
[330652274,1719691838804,-408.71040211,0.00016947,2]
[330652276,1719691838814,-500.0,0.00016947,2]
[330652278,1719691838824,-500.0,0.00016947,2]
[330652280,1719691838840,-734.59,0.00016947,2]
[330652282,1719691838850,-881.53,0.00016947,2]
[330652284,1719691838859,-500.0,0.00016947,2]
[330652285,1719691838868,-500.0,0.00016947,2]
[330652287,1719691838877,-500.0,0.00016947,2]
[330652289,1719691838887,-500.0,0.00016947,2]
[330652291,1719691838896,-500.0,0.00016947,2]
[330652293,1719691838905,-500.0,0.00016947,2]
[330652295,1719691838914,-500.0,0.00016947,2]
[330652297,1719691838923,-500.0,0.00016947,2]
[330652299,1719691838932,-500.0,0.00016947,2]
[330652301,1719691838941,-500.0,0.00016947,2]
[330652303,1719691838951,-500.0,0.00016947,2]
[330652305,1719691838961,-1662.17,0.00016947,2]
[330652307,1719691838971,-500.0,0.00016947,2]
[330652318,1719691839064,-538.49,0.00016947,2]
[330652320,1719691839089,-500.0,0.00016947,2]
[330652322,1719691839100,-500.0,0.00016947,2]
[330652324,1719691839111,-500.0,0.00016947,2]
[330652326,1719691839122,-500.0,0.00016947,2]
[330652328,1719691839132,-500.0,0.00016947,2]
[330652330,1719691839142,-500.0,0.00016947,2]
[330652332,1719691839152,-500.0,0.00016947,2]
[330652334,1719691839163,-500.0,0.00016947,2]
[330652336,1719691839173,-645.74,0.00016947,2]
[330652338,1719691839184,-635.59642352,0.00016947,2]
[330652340,1719691839194,-500.0,0.00016947,2]
[330652342,1719691839203,-500.0,0.00016947,2]
[330652344,1719691839213,-500.0,0.00016947,2]
[330652345,1719691839223,-500.0,0.00016947,2]
[330652347,1719691839234,-500.0,0.00016947,2]
[330652349,1719691839244,-500.0,0.00016947,2]
[330652351,1719691839255,-151.0,0.00016947,2]
[330652353,1719691839265,-159.89175344,0.00016947,2]
[330652355,1719691839275,-1720.39,0.00016947,2]
[330652357,1719691839285,-500.0,0.00016947,2]
[330652359,1719691839295,-500.0,0.00016947,2]
[330652361,1719691839304,-500.0,0.00016947,2]
[330652363,1719691839314,-885.05,0.00016947,2]
[330652365,1719691839326,-500.0,0.00016947,2]
[330652367,1719691839341,-924.98,0.00016947,2]
[330652369,1719691839351,-182.78609145,0.00016947,2]
[330652371,1719691839361,-846.78,0.00016947,2]
[330652373,1719691839371,-500.0,0.00016947,2]
[330652375,1719691839382,-500.0,0.00016947,2]
[330652377,1719691839392,-3824.35,0.00016947,2]
[330652379,1719691839402,-545.02406216,0.00016947,2]
[330652381,1719691839411,-972.35,0.00016947,2]
[330652383,1719691839424,-12189.58,0.00016947,2]
[330652385,1719691839434,-524.4488104,0.00016947,2]
[330652387,1719691839443,-545.95292562,0.00016947,2]
[330652389,1719691839453,-291.16888287,0.00016947,2]
[330652391,1719691839462,-514.76491581,0.00016947,2]
[330652392,1719691839472,-500.0,0.00016947,2]
[330652394,1719691839481,-338.98286592,0.00016947,2]
[330652396,1719691839491,-500.0,0.00016947,2]
[330652398,1719691839500,-500.0,0.00016947,2]
[330652400,1719691839510,-500.0,0.00016947,2]
[330652402,1719691839520,-500.0,0.00016947,2]
[330652404,1719691839529,-1222.69,0.00016947,2]
[330652406,1719691839539,-500.0,0.00016947,2]
[330652408,1719691839549,-663.09,0.00016947,2]
[330652410,1719691839559,-500.0,0.00016947,2]
[330652412,1719691839568,-1753.86,0.00016947,2]
[330652414,1719691839578,-500.0,0.00016947,2]
[330652416,1719691839588,-1241.94,0.00016947,2]
[330652418,1719691839597,-500.0,0.00016947,2]
[330652420,1719691839607,-533.74,0.00016947,2]
[330652422,1719691839616,-500.0,0.00016947,2]
[330652424,1719691839626,-500.0,0.00016947,2]
[330652426,1719691839635,-500.0,0.00016947,2]
[330652428,1719691839645,-2479.93,0.00016947,2]
[330652430,1719691839655,-2221.33,0.00016947,2]
[330652433,1719691839664,-1111.04,0.00016947,2]
[330652436,1719691839674,-500.0,0.00016947,2]
[330652439,1719691839684,-507.33651066,0.00016947,2]
[330652442,1719691839694,-821.11,0.00016947,2]
[330652445,1719691839703,-501.605014,0.00016947,2]
[330652447,1719691839712,-799.24,0.00016947,2]
[330652449,1719691839721,-536.96716511,0.00016947,2]
[330652450,1719691839731,-500.0,0.00016947,2]
[330652452,1719691839740,-504.08985848,0.00016947,2]
[330652453,1719691839760,-976.93,0.00016947,2]
[330652455,1719691839770,-2282.85,0.00016947,2]
[330652457,1719691839780,-583.66,0.00016947,2]
[330652459,1719691839790,-4780.1,0.00016947,2]
[330652461,1719691839800,-500.0,0.00016947,2]
[330652463,1719691839809,-500.0,0.00016947,2]
[330652465,1719691839819,-500.0,0.00016947,2]
[330652467,1719691839828,-500.0,0.00016947,2]
[330652469,1719691839840,-22308.16,0.00016947,2]
[330652471,1719691839850,-2470.1,0.00016948,2]
[330652473,1719691839860,-807.33,0.00016948,2]
[330652475,1719691839870,-17125.95,0.00016948,2]
[330652477,1719691839880,-500.0,0.00016948,2]
[330652479,1719691839890,-500.0,0.00016948,2]
[330652481,1719691839899,-1249.62,0.00016948,2]
[330652483,1719691839909,-1030.9,0.00016948,2]
[330652485,1719691839919,-1599.62,0.00016948,2]
[330652487,1719691839928,-2358.48,0.00016948,2]
[330652489,1719691839938,-1355.77,0.00016948,2]
[330652491,1719691839948,-1064.59,0.00016948,2]
[330652493,1719691839958,-500.0,0.00016948,2]
[330652495,1719691839967,-500.0,0.00016948,2]
[330652497,1719691839977,-500.0,0.00016948,2]
[330652499,1719691839987,-500.0,0.00016948,2]
[330652501,1719691839996,-500.0,0.00016948,2]
[330652503,1719691840006,-1253.45,0.00016948,2]
[330652505,1719691840016,-502.89063744,0.00016948,2]
[330652507,1719691840026,-506.08147581,0.00016948,2]
[330652509,1719691840036,-500.0,0.00016948,2]
[330652511,1719691840047,-500.0,0.00016948,2]
[330652513,1719691840057,-13664.7,0.00016948,2]
[330652515,1719691840067,-506.25907671,0.00016948,2]
[330652517,1719691840077,-396.078909,0.00016948,2]
[330652519,1719691840087,-396.078909,0.00016948,2]
[330652521,1719691840097,-504.66540187,0.00016948,2]
[330652523,1719691840107,-1387.91,0.00016948,2]
[330652525,1719691840116,-511.02104243,0.00016948,2]
[330652527,1719691840125,-500.0,0.00016948,2]
[330652529,1719691840135,-687.69,0.00016948,2]
[330652530,1719691840144,-500.0,0.00016948,2]
[330652532,1719691840153,-2204.74,0.00016948,2]
[330652534,1719691840163,-809.49,0.00016948,2]
[330652537,1719691840173,-1063.34,0.00016948,2]
[330652539,1719691840183,-500.0,0.00016948,2]
[330652540,1719691840193,-151.0,0.00016948,2]
[330652543,1719691840203,-657.55,0.00016948,2]
[330652545,1719691840213,-1139.35,0.00016948,2]
[330652547,1719691840222,-1394.6,0.00016948,2]
[330652549,1719691840232,-500.0,0.00016948,2]
[330652550,1719691840241,-2459.55,0.00016948,2]
[330652552,1719691840251,-500.0,0.00016948,2]
[330652554,1719691840260,-503.50737533,0.00016948,2]
[330652555,1719691840269,-500.0,0.00016948,2]
[330652556,1719691840280,-500.0,0.00016948,2]
[330652557,1719691840289,-1354.89,0.00016948,2]
[330652558,1719691840298,-500.0,0.00016948,2]
[330652559,1719691840385,-1111.82,0.00016948,2]
[330652560,1719691840394,-500.0,0.00016948,2]
[330652561,1719691840403,-2515.46,0.00016948,2]
[330652562,1719691840413,-1493.28,0.00016948,2]
[330652563,1719691840423,-617.55,0.00016948,2]
[330652564,1719691840433,-1539.13,0.00016948,2]
[330652565,1719691840443,-500.0,0.00016948,2]
[330652566,1719691840453,-2764.79,0.00016948,2]
[330652567,1719691840462,-1647.97,0.00016948,2]
[330652568,1719691840471,-500.0,0.00016948,2]
[330652569,1719691840480,-500.0,0.00016948,2]
[330652570,1719691840489,-502.85705705,0.00016948,2]
[330652571,1719691840497,-506.05663068,0.00016948,2]
[330652572,1719691840506,-500.0,0.00016948,2]
[330652573,1719691840516,-500.0,0.00016948,2]
[330652574,1719691840525,-500.0,0.00016948,2]
[330652575,1719691840534,-500.0,0.00016948,2]
[330652576,1719691840543,-951.95,0.00016948,2]
[330652577,1719691840553,-500.0,0.00016948,2]
[330652578,1719691840562,-2912.55,0.00016948,2]
[330652579,1719691840571,-500.0,0.00016948,2]
[330652580,1719691840580,-612.21,0.00016948,2]
[330652581,1719691840589,-500.0,0.00016948,2]
[330652582,1719691840598,-500.0,0.00016948,2]
[330652583,1719691840607,-508.53454151,0.00016948,2]
[330652584,1719691840616,-701.66,0.00016948,2]
[330652585,1719691840625,-500.0,0.00016948,2]
[330652586,1719691840635,-151.0,0.00016948,2]
[330652587,1719691840644,-206.09294144,0.00016948,2]
[330652589,1719691840653,-500.0,0.00016948,2]
[330652591,1719691840663,-502.31472678,0.00016948,2]
[330652593,1719691840672,-1702.36,0.00016948,2]
[330652595,1719691840682,-625.92,0.00016948,2]
[330652597,1719691840691,-1703.38,0.00016948,2]
[330652599,1719691840701,-1414.68,0.00016948,2]
[330652601,1719691840711,-500.0,0.00016948,2]
[330652603,1719691840720,-500.0,0.00016948,2]
[330652605,1719691840729,-4897.34279829,0.00016948,2]
[330652662,1719691841272,-5227.9,0.00016946,2]
[330652665,1719691841287,-500.0,0.00016947,2]
[330652668,1719691841303,-500.0,0.00016947,2]
[330652670,1719691841316,-17471.02720171,0.00016948,2]
[330652673,1719691841331,-500.0,0.00016948,2]
[330652676,1719691841350,-500.0,0.00016948,2]
[330652678,1719691841365,-1709.68,0.00016948,2]
[330652681,1719691841379,-4044.48,0.00016948,2]
[330652683,1719691841394,-500.0,0.00016948,2]
[330652686,1719691841409,-500.0,0.00016948,2]
[330652688,1719691841425,-2249.18,0.00016948,2]
[330652691,1719691841439,-500.0,0.00016948,2]
[330652693,1719691841454,-417.11143587,0.00016949,2]
[330652916,1719691843095,-500.0,0.00016946,2]
[330652918,1719691843104,-501.62434204,0.00016947,2]
[330652920,1719691843114,-500.0,0.00016947,2]
[330652922,1719691843123,-82.88856413,0.00016949,2]
[330652924,1719691843133,-797.92,0.00016949,2]
[330652926,1719691843142,-714.52,0.00016949,2]
[330652929,1719691843152,-500.0,0.00016949,2]
[330652931,1719691843161,-910.47,0.00016949,2]
[330652933,1719691843170,-176.57164171,0.00016949,2]
[330653520,1719692046761,6788.57098714,0.00014998,2]
[330653521,1719692057282,1957.60375651,0.00014999,2]
[330653522,1719692069324,159.73749166,0.00014999,2]
[330653523,1719692069845,522.60599944,0.00014999,2]
[330653524,1719692070164,5100.24749868,0.00014998,2]
[330653525,1719692077667,528.76178297,0.00014999,2]
[330653526,1719692104223,351.00281997,0.00014999,2]
[330653527,1719692105781,491.68319599,0.00014999,2]
[330653528,1719692110243,710.03947718,0.00014999,4]
[330653536,1719692450179,10369.44187021,0.00014998,2]
[330653537,1719692503311,19351.9714729,0.00014999,2]
[330653544,1719692616019,6872.35083866,0.00014998,2]
[330653547,1719692660380,239.66852687,0.00014999,2]
[330653548,1719692663474,1568.46393602,0.00014999,2]
[330653549,1719692673594,303.24658308,0.00014999,2]
[330653550,1719692679269,154.86836189,0.00014999,2]
[330653554,1719692711472,1107.13800788,0.00015,2]
[330653555,1719692719301,1284.46803157,0.00014999,2]
[330653558,1719692740228,939.28321263,0.00014999,2]
[330653564,1719692801729,477.00236967,0.00014999,2]
[330653565,1719692807117,661.02191693,0.00014999,2]
[330653566,1719692818254,277.94732691,0.00014999,2]
[330653567,1719692827312,597.95617303,0.00014999,2]
[330653568,1719692835122,159.21578068,0.00014999,2]
[330653570,1719692841963,173.20012154,0.00014999,2]
[330653571,1719692859618,196.29260031,0.00014999,2]
[330653574,1719692882311,1313.50270188,0.00014999,2]
[330653575,1719692884396,157.94776583,0.00014999,2]
[330653578,1719692911921,842.74466502,0.00014999,2]
[330653579,1719692924531,335.18517878,0.00015,2]
[330653582,1719692933958,155.33558078,0.00014999,2]
[330653583,1719692941028,893.56049328,0.00014999,2]
[330653584,1719692942297,4330.41809002,0.00014999,2]
[330653585,1719692956958,382.61307245,0.00014999,2]
[330653587,1719692970217,155.54617734,0.00014999,2]
[330653606,1719693032187,-502.40714426,0.00015995,2]
[330653607,1719693032197,-473.34285574,0.00016,2]
[330653613,1719693032392,-26.65714426,0.00016,2]
[330653614,1719693032402,-3310.40106992,0.00016626,2]
[330653615,1719693032414,-441.04596982,0.00016626,2]
[330653616,1719693032426,-1533.69585541,0.00016626,2]
[330653617,1719693032435,-895.91594519,0.00016776,2]
[330653618,1719693032447,-153.0,0.000168,2]
[330653619,1719693032457,-54.63864154,0.00016842,2]
[330653620,1719693032468,-245.36135846,0.00016842,2]
[330653621,1719693032478,-300.0,0.00016842,2]
[330653622,1719693032488,-1316.13274442,0.00016843,2]
[330653623,1719693032499,-1437.5294023,0.00016843,2]
[330653624,1719693032511,-917.63766173,0.00016843,2]
[330653673,1719693038363,-635.54730847,0.00016843,2]
[330653675,1719693038373,-831.4459952,0.00016844,2]
[330653690,1719693038532,-1058.6939407,0.00016844,2]
[330653693,1719693038545,-2416.70718099,0.00016844,2]
[330653695,1719693038555,-2000.0,0.00016844,2]
[330653697,1719693038565,-4306.84711689,0.00016845,2]
[330653699,1719693038576,-4306.84711689,0.00016846,2]
[330653701,1719693038586,-4306.84711689,0.00016847,2]
[330653703,1719693038598,-240.821,0.00016873,2]
[330653705,1719693038608,-500.0,0.00016895,2]
[330653707,1719693038619,-500.0,0.00016895,2]
[330653709,1719693038629,-935.23,0.00016896,2]
[330653711,1719693038639,-501.60792598,0.00016896,2]
[330653713,1719693038649,-62188.71,0.00016896,2]
[330653715,1719693038660,-7107.24,0.00016896,2]
[330653717,1719693038669,-10258.32,0.00016896,2]
[330653719,1719693038679,-11834.81,0.00016896,2]
[330653721,1719693038688,-599.05,0.00016896,2]
[330653723,1719693038698,-4430.46,0.00016896,2]
[330653724,1719693038707,-2997.04,0.00016896,2]
[330653727,1719693038722,-500.0,0.00016896,2]
[330653728,1719693038732,-501.89133462,0.00016896,2]
[330653730,1719693038741,-500.0,0.00016896,2]
[330653732,1719693038750,-500.0,0.00016896,2]
[330653734,1719693038762,-8026.09,0.00016896,2]
[330653737,1719693038772,-1733.4,0.00016896,2]
[330653739,1719693038783,-60011.74687239,0.00016897,2]
[330653740,1719693038794,-700.0,0.000169,2]
[330653742,1719693038803,-153.0,0.000169,2]
[330653744,1719693038812,-153.0,0.000169,2]
[330653746,1719693038822,-153.0,0.000169,2]
[330653748,1719693038832,-153.0,0.000169,2]
[330653751,1719693038841,-205.9490316,0.000169,2]
[330653753,1719693038851,-153.0,0.000169,2]
[330653755,1719693038861,-153.0,0.000169,2]
[330653756,1719693038870,-153.0,0.000169,2]
[330653759,1719693038880,-153.0,0.000169,2]
[330653761,1719693038890,-153.0,0.000169,2]
[330653763,1719693038901,-205.9490316,0.000169,2]
[330653765,1719693038910,-153.0,0.000169,2]
[330653767,1719693038920,-205.9490316,0.000169,2]
[330653769,1719693038929,-71599.64330274,0.00016943,7]
[330653771,1719693038939,-832.24,0.00016943,2]
[330653773,1719693038948,-500.0,0.00016943,2]
[330653775,1719693038958,-500.0,0.00016943,2]
[330653777,1719693038967,-3623.06,0.00016943,2]
[330653779,1719693038976,-1083.87,0.00016943,2]
[330653781,1719693038986,-500.0,0.00016943,2]
[330653783,1719693038995,-500.0,0.00016943,2]
[330653785,1719693039005,-911.89,0.00016943,2]
[330653787,1719693039015,-681.89,0.00016943,2]
[330653789,1719693039025,-4092.48,0.00016943,2]
[330653791,1719693039035,-500.0,0.00016943,2]
[330653793,1719693039044,-500.0,0.00016943,2]
[330653794,1719693039055,-500.0,0.00016943,2]
[330653796,1719693039065,-807.53,0.00016943,2]
[330653798,1719693039075,-500.0,0.00016943,2]
[330653801,1719693039085,-500.0,0.00016943,2]
[330653803,1719693039095,-500.0,0.00016943,2]
[330653805,1719693039106,-774.86,0.00016943,2]
[330653807,1719693039117,-10607.69,0.00016943,2]
[330653809,1719693039127,-500.0,0.00016943,2]
[330653811,1719693039137,-500.0,0.00016943,2]
[330653813,1719693039147,-500.0,0.00016943,2]
[330653815,1719693039158,-500.0,0.00016943,2]
[330653817,1719693039168,-673.81,0.00016943,2]
[330653819,1719693039178,-3715.04,0.00016943,2]
[330653821,1719693039188,-4196.69,0.00016943,2]
[330653823,1719693039199,-9575.86,0.00016943,2]
[330653825,1719693039209,-5238.41,0.00016943,2]
[330653827,1719693039219,-925.33,0.00016943,2]
[330653829,1719693039229,-470.85616767,0.00016943,2]
[330653831,1719693039239,-500.0,0.00016943,2]
[330653833,1719693039249,-500.0,0.00016943,2]
[330653835,1719693039259,-500.0,0.00016943,2]
[330653837,1719693039270,-500.0,0.00016943,2]
[330653839,1719693039280,-883.6,0.00016943,2]
[330653841,1719693039290,-501.57396138,0.00016943,2]
[330653843,1719693039300,-2161.59,0.00016943,2]
[330653845,1719693039311,-1014.63,0.00016943,2]
[330653847,1719693039321,-501.80265765,0.00016943,2]
[330653849,1719693039332,-12722.99,0.00016943,2]
[330653851,1719693039343,-500.0,0.00016943,2]
[330653853,1719693039353,-1077.37,0.00016943,2]
[330653855,1719693039364,-501.66243871,0.00016943,2]
[330653857,1719693039374,-502.00606923,0.00016943,2]
[330653859,1719693039384,-500.0,0.00016943,2]
[330653861,1719693039395,-500.0,0.00016943,2]
[330653863,1719693039405,-1222.69,0.00016943,2]
[330653865,1719693039416,-1753.86,0.00016943,2]
[330653867,1719693039425,-500.0,0.00016943,2]
[330653869,1719693039435,-514.76491581,0.00016943,2]
[330653871,1719693039446,-500.0,0.00016943,2]
[330653873,1719693039457,-1111.04,0.00016943,2]
[330653875,1719693039467,-501.605014,0.00016943,2]
[330653877,1719693039477,-799.24,0.00016943,2]
[330653879,1719693039487,-500.0,0.00016943,2]
[330653881,1719693039497,-2397.5,0.00016943,2]
[330653883,1719693039507,-1241.94,0.00016943,2]
[330653885,1719693039517,-4780.1,0.00016943,2]
[330653887,1719693039527,-1075.72,0.00016943,2]
[330653889,1719693039537,-22308.16,0.00016943,2]
[330653891,1719693039547,-533.74,0.00016943,2]
[330653893,1719693039557,-1599.62,0.00016943,2]
[330653895,1719693039567,-1577.18,0.00016943,2]
[330653897,1719693039578,-500.0,0.00016943,2]
[330653899,1719693039588,-614.61,0.00016944,2]
[330653901,1719693039598,-500.0,0.00016944,2]
[330653903,1719693039610,-856.67,0.00016944,2]
[330653905,1719693039622,-500.0,0.00016944,2]
[330653907,1719693039632,-500.0,0.00016944,2]
[330653909,1719693039642,-500.0,0.00016944,2]
[330653911,1719693039652,-500.0,0.00016944,2]
[330653913,1719693039662,-649.23,0.00016944,2]
[330653915,1719693039672,-500.0,0.00016944,2]
[330653917,1719693039682,-377.64447691,0.00016944,2]
[330653919,1719693039692,-500.0,0.00016944,2]
[330653921,1719693039702,-512.21873744,0.00016944,2]
[330653923,1719693039715,-503.32054217,0.00016944,2]
[330653925,1719693039724,-500.0,0.00016944,2]
[330653927,1719693039734,-183.40138099,0.00016944,2]
[330653929,1719693039744,-1216.46,0.00016944,2]
[330653931,1719693039754,-500.0,0.00016944,2]
[330653933,1719693039765,-500.0,0.00016944,2]
[330653935,1719693039776,-528.6361372,0.00016944,2]
[330653937,1719693039786,-500.0,0.00016944,2]
[330653939,1719693039796,-500.0,0.00016944,2]
[330653941,1719693039807,-543.58763257,0.00016944,2]
[330653943,1719693039817,-500.0,0.00016944,2]
[330653945,1719693039827,-500.0,0.00016944,2]
[330653947,1719693039837,-538.1489988,0.00016944,2]
[330653949,1719693039847,-408.71040211,0.00016944,2]
[330653951,1719693039857,-1000.0,0.00016944,2]
[330653953,1719693039867,-881.53,0.00016944,2]
[330653955,1719693039879,-500.0,0.00016944,2]
[330653957,1719693039889,-500.0,0.00016944,2]
[330653959,1719693039899,-1015.74,0.00016944,2]
[330653961,1719693039909,-500.0,0.00016944,2]
[330653963,1719693039919,-500.0,0.00016944,2]
[330653965,1719693039929,-500.0,0.00016944,2]
[330653967,1719693039939,-500.0,0.00016944,2]
[330653970,1719693039950,-734.59,0.00016944,2]
[330653973,1719693039960,-500.0,0.00016944,2]
[330653976,1719693039969,-1662.17,0.00016944,2]
[330653978,1719693039979,-500.0,0.00016944,2]
[330653980,1719693039988,-500.0,0.00016944,2]
[330653982,1719693039998,-538.49,0.00016944,2]
[330653984,1719693040008,-2479.93,0.00016944,2]
[330653986,1719693040018,-500.0,0.00016944,2]
[330653988,1719693040028,-500.0,0.00016944,2]
[330653990,1719693040038,-500.0,0.00016944,2]
[330653992,1719693040048,-500.0,0.00016944,2]